[Event "Titled Tuesday Blitz April 26 Early 2022"]
[White "Vagman, Roy"]
[Black "Hnydiuk, Aleksander"]
[WhiteFideId "2828995"]
[BlackFideId "1109057"]
[WhiteElo "1927"]
[BlackElo "2374"]
[Result "1/2-1/2"]
[Round "02"]
[TimeControl "180+1"]
[Date "2022.04.26"]
[WhiteClock "0:00:07"]
[BlackClock "0:00:13"]

1. d4 {[%clk 0:03:00]}  d5 {[%clk 0:02:56]} 2. c4 {[%clk 0:03:01]}  dxc4 {[%clk 0:02:56]} 3. e3 {[%clk 0:03:00]}  Nf6 {[%clk 0:02:56]} 4. Bxc4 {[%clk 0:03:00]}  e6 {[%clk 0:02:56]} 5. Nf3 {[%clk 0:03:00]}  c5 {[%clk 0:02:57]} 6. O-O {[%clk 0:02:54]}  a6 {[%clk 0:02:57]} 7. a4 {[%clk 0:02:54]}  Nc6 {[%clk 0:02:56]} 8. Qe2 {[%clk 0:02:51]}  Be7 {[%clk 0:02:48]} 9. Rd1 {[%clk 0:02:50]}  O-O {[%clk 0:02:47]} 10. dxc5 {[%clk 0:02:46]}  Qc7 {[%clk 0:02:47]} 11. b3 {[%clk 0:02:44]}  Na5 {[%clk 0:02:39]} 12. Bb2 {[%clk 0:02:30]}  Nxc4 {[%clk 0:02:39]} 13. Qxc4 {[%clk 0:02:29]}  Qxc5 {[%clk 0:02:38]} 14. Qe2 {[%clk 0:02:23]}  b6 {[%clk 0:02:28]} 15. Nbd2 {[%clk 0:02:11]}  Bb7 {[%clk 0:02:27]} 16. Rac1 {[%clk 0:01:57]}  Qh5 {[%clk 0:02:04]} 17. Nf1 {[%clk 0:01:49]}  Rac8 {[%clk 0:01:58]} 18. Ng3 {[%clk 0:01:47]}  Qg4 {[%clk 0:01:44]} 19. Rd4 {[%clk 0:01:44]}  Rxc1+ {[%clk 0:01:40]} 20. Bxc1 {[%clk 0:01:44]}  Qg6 {[%clk 0:01:38]} 21. Bb2 {[%clk 0:01:43]}  Rd8 {[%clk 0:01:20]} 22. h3 {[%clk 0:01:24]}  h5 {[%clk 0:00:57]} 23. Rxd8+ {[%clk 0:01:21]}  Bxd8 {[%clk 0:00:58]} 24. Kh2 {[%clk 0:01:11]}  Bc7 {[%clk 0:00:52]} 25. Qc4 {[%clk 0:00:50]}  Bb8 {[%clk 0:00:47]} 26. Be5 {[%clk 0:00:44]}  Bxe5 {[%clk 0:00:35]} 27. Nxe5 {[%clk 0:00:45]}  Qg5 {[%clk 0:00:26]} 28. Qc7 {[%clk 0:00:38]}  Bxg2 {[%clk 0:00:17]} 29. Qxf7+ {[%clk 0:00:36]}  Kh7 {[%clk 0:00:16]} 30. f4 {[%clk 0:00:32]}  Qh6 {[%clk 0:00:12]} 31. Kxg2 {[%clk 0:00:28]}  h4 {[%clk 0:00:12]} 32. Ne2 {[%clk 0:00:24]}  Nd5 {[%clk 0:00:12]} 33. Ng4 {[%clk 0:00:20]}  Qg6 {[%clk 0:00:10]} 34. Qxg6+ {[%clk 0:00:20]}  Kxg6 {[%clk 0:00:11]} 35. Kf3 {[%clk 0:00:21]}  b5 {[%clk 0:00:09]} 36. Ne5+ {[%clk 0:00:21]}  Kf6 {[%clk 0:00:08]} 37. Nd4 {[%clk 0:00:22]}  bxa4 {[%clk 0:00:07]} 38. bxa4 {[%clk 0:00:23]}  a5 {[%clk 0:00:06]} 39. Nec6 {[%clk 0:00:23]}  Nc3 {[%clk 0:00:06]} 40. Nxa5 {[%clk 0:00:22]}  Nxa4 {[%clk 0:00:06]} 41. Nac6 {[%clk 0:00:23]}  Nc5 {[%clk 0:00:06]} 42. Ne5 {[%clk 0:00:24]}  g5 {[%clk 0:00:04]} 43. Ng4+ {[%clk 0:00:24]}  Kg6 {[%clk 0:00:04]} 44. Ne5+ {[%clk 0:00:24]}  Kf6 {[%clk 0:00:05]} 45. Kg4 {[%clk 0:00:24]}  gxf4 {[%clk 0:00:04]} 46. exf4 {[%clk 0:00:25]}  Ne4 {[%clk 0:00:04]} 47. Ndf3 {[%clk 0:00:25]}  Nf2+ {[%clk 0:00:01]} 48. Kxh4 {[%clk 0:00:26]}  Kf5 {[%clk 0:00:02]} 49. Kg3 {[%clk 0:00:26]}  Nxh3 {[%clk 0:00:02]} 50. Nd4+ {[%clk 0:00:15]}  Ke4 {[%clk 0:00:02]} 51. Kxh3 {[%clk 0:00:14]}  Kxf4 {[%clk 0:00:01]} 52. Nec6 {[%clk 0:00:14]}  Ke4 {[%clk 0:00:02]} 53. Nc2 {[%clk 0:00:15]}  e5 {[%clk 0:00:02]} 54. Kg4 {[%clk 0:00:15]}  Kd5 {[%clk 0:00:02]} 55. N6b4+ {[%clk 0:00:16]}  Kd6 {[%clk 0:00:03]} 56. Kf5 {[%clk 0:00:16]}  e4 {[%clk 0:00:04]} 57. Ne3 {[%clk 0:00:15]}  Kd7 {[%clk 0:00:04]} 58. Nbc2 {[%clk 0:00:16]}  Kc7 {[%clk 0:00:05]} 59. Nd4 {[%clk 0:00:17]}  Kb6 {[%clk 0:00:05]} 60. Ke5 {[%clk 0:00:18]}  Kc5 {[%clk 0:00:06]} 61. Ne6+ {[%clk 0:00:18]}  Kb4 {[%clk 0:00:07]} 62. Kd4 {[%clk 0:00:18]}  Kb3 {[%clk 0:00:07]} 63. Nc5+ {[%clk 0:00:18]}  Kb4 {[%clk 0:00:08]} 64. Ne6 {[%clk 0:00:17]}  Kb5 {[%clk 0:00:09]} 65. Nf4 {[%clk 0:00:17]}  Kb4 {[%clk 0:00:09]} 66. Ne2 {[%clk 0:00:17]}  Kb5 {[%clk 0:00:10]} 67. Nc1 {[%clk 0:00:16]}  Kb4 {[%clk 0:00:11]} 68. Nc2+ {[%clk 0:00:15]}  Kb5 {[%clk 0:00:12]} 69. Ne3 {[%clk 0:00:15]}  Kb4 {[%clk 0:00:13]} 70. Na2+ {[%clk 0:00:15]}  Kb5 {[%clk 0:00:14]} 71. Kd5 {[%clk 0:00:14]}  Ka4 {[%clk 0:00:14]} 72. Kc4 {[%clk 0:00:15]}  Ka3 {[%clk 0:00:14]} 73. Nc3 {[%clk 0:00:15]}  Kb2 {[%clk 0:00:14]} 74. Kb4 {[%clk 0:00:15]}  Kc1 {[%clk 0:00:14]} 75. Kc4 {[%clk 0:00:13]}  Kd2 {[%clk 0:00:15]} 76. Kd4 {[%clk 0:00:13]}  Ke1 {[%clk 0:00:13]} 77. Na4 {[%clk 0:00:07]}  Kf2 {[%clk 0:00:14]} 78. Nc5 {[%clk 0:00:07]}  Kf3 {[%clk 0:00:14]} 79. Ne6 {[%clk 0:00:08]}  Kg3 {[%clk 0:00:14]} 80. Ke5 {[%clk 0:00:06]}  Kf2 {[%clk 0:00:13]} 81. Kf4 {[%clk 0:00:06]}  Ke2 {[%clk 0:00:14]} 82. Nc5 {[%clk 0:00:07]}  Kd2 {[%clk 0:00:13]} 83. Nb3+ {[%clk 0:00:06]}  Kc3 {[%clk 0:00:13]} 84. Nc1 {[%clk 0:00:07]}  Kd2 {[%clk 0:00:14]} 85. Na2 {[%clk 0:00:07]}  Ke1 {[%clk 0:00:12]} 86. Nb4 {[%clk 0:00:07]}  Kd2 {[%clk 0:00:12]} 87. Nf1+ {[%clk 0:00:05]}  Kc3 {[%clk 0:00:11]} 88. Nd5+ {[%clk 0:00:05]}  Kd4 {[%clk 0:00:12]} 89. Nde3 {[%clk 0:00:06]}  Kd3 {[%clk 0:00:12]} 90. Kg3 {[%clk 0:00:06]}  Ke2 {[%clk 0:00:12]} 91. Kg2 {[%clk 0:00:07]}  Kd3 {[%clk 0:00:12]} 92. Kf2 {[%clk 0:00:08]}  Kd4 {[%clk 0:00:12]} 93. Ke2 {[%clk 0:00:09]}  Ke5 {[%clk 0:00:11]} 94. Kd2 {[%clk 0:00:09]}  Kd4 {[%clk 0:00:11]} 95. Nh2 {[%clk 0:00:08]}  Ke5 {[%clk 0:00:12]} 96. Nhg4+ {[%clk 0:00:08]}  Kf4 {[%clk 0:00:13]} 97. Nf6 {[%clk 0:00:09]}  Kf3 {[%clk 0:00:13]} 98. Nh5 {[%clk 0:00:09]}  Kf2 {[%clk 0:00:12]} 99. Nf4 {[%clk 0:00:09]}  Kf3 {[%clk 0:00:12]} 100. Nh3 {[%clk 0:00:10]}  Kg3 {[%clk 0:00:12]} 101. Ng5 {[%clk 0:00:10]}  Kf4 {[%clk 0:00:12]} 102. Nf7 {[%clk 0:00:10]}  Kf3 {[%clk 0:00:12]} 103. Nd6 {[%clk 0:00:08]}  Kf4 {[%clk 0:00:13]} 104. Ke2 {[%clk 0:00:07]}  Ke5 {[%clk 0:00:13]} 105. Ndc4+ {[%clk 0:00:07]}  Kd4 {[%clk 0:00:14]} 106. Na3 {[%clk 0:00:07]}  Ke5 {[%clk 0:00:13]} 1/2-1/2


[Site "https://www.chess.com"]

[Event "Titled Tuesday Blitz April 26 Early 2022"]
[White "Van den Dikkenberg, Erik"]
[Black "Przybylski, Wojciech"]
[WhiteFideId "1005880"]
[BlackFideId "1117599"]
[WhiteElo "2118"]
[BlackElo "2133"]
[Result "0-1"]
[Round "02"]
[TimeControl "180+1"]
[Date "2022.04.26"]
[WhiteClock "0:00:10"]
[BlackClock "0:00:07"]

1. e4 {[%clk 0:02:57]}  e5 {[%clk 0:02:52]} 2. Nf3 {[%clk 0:02:52]}  Nf6 {[%clk 0:02:52]} 3. Nxe5 {[%clk 0:02:51]}  d6 {[%clk 0:02:52]} 4. Nf3 {[%clk 0:02:51]}  Nxe4 {[%clk 0:02:52]} 5. Nc3 {[%clk 0:02:51]}  Nxc3 {[%clk 0:02:51]} 6. dxc3 {[%clk 0:02:52]}  Be7 {[%clk 0:02:50]} 7. Bf4 {[%clk 0:02:52]}  O-O {[%clk 0:02:49]} 8. Qd2 {[%clk 0:02:52]}  Re8 {[%clk 0:02:49]} 9. O-O-O {[%clk 0:02:52]}  Bg4 {[%clk 0:02:43]} 10. Kb1 {[%clk 0:02:51]}  Nd7 {[%clk 0:02:40]} 11. h3 {[%clk 0:02:51]}  Bxf3 {[%clk 0:02:37]} 12. gxf3 {[%clk 0:02:51]}  Ne5 {[%clk 0:02:36]} 13. Be2 {[%clk 0:02:47]}  Bf6 {[%clk 0:02:33]} 14. h4 {[%clk 0:02:47]}  Qd7 {[%clk 0:02:31]} 15. Rdg1 {[%clk 0:02:39]}  Qc6 {[%clk 0:02:21]} 16. Rg3 {[%clk 0:02:23]}  Nc4 {[%clk 0:02:18]} 17. Bxc4 {[%clk 0:02:21]}  Qxc4 {[%clk 0:02:17]} 18. Rhg1 {[%clk 0:02:02]}  Re6 {[%clk 0:02:14]} 19. h5 {[%clk 0:01:56]}  Rae8 {[%clk 0:01:53]} 20. Be3 {[%clk 0:01:15]}  c5 {[%clk 0:01:22]} 21. a3 {[%clk 0:01:04]}  d5 {[%clk 0:01:18]} 22. Rxg7+ {[%clk 0:01:02]}  Bxg7 {[%clk 0:01:13]} 23. h6 {[%clk 0:01:03]}  Rg6 {[%clk 0:01:00]} 24. Rxg6 {[%clk 0:01:00]}  hxg6 {[%clk 0:00:54]} 25. hxg7 {[%clk 0:01:00]}  Re5 {[%clk 0:00:27]} 26. b3 {[%clk 0:00:46]}  Qf1+ {[%clk 0:00:24]} 27. Kb2 {[%clk 0:00:45]}  b6 {[%clk 0:00:20]} 28. f4 {[%clk 0:00:29]}  Rh5 {[%clk 0:00:20]} 29. b4 {[%clk 0:00:22]}  Rh1 {[%clk 0:00:16]} 30. Kb3 {[%clk 0:00:20]}  Qc4+ {[%clk 0:00:15]} 31. Kb2 {[%clk 0:00:19]}  Qf1 {[%clk 0:00:14]} 32. Kb3 {[%clk 0:00:19]}  b5 {[%clk 0:00:13]} 33. c4 {[%clk 0:00:16]}  bxc4+ {[%clk 0:00:11]} 34. Ka4 {[%clk 0:00:15]}  d4 {[%clk 0:00:10]} 35. Bxd4 {[%clk 0:00:15]}  cxd4 {[%clk 0:00:10]} 36. Qxd4 {[%clk 0:00:15]}  Qe2 {[%clk 0:00:05]} 37. Qd8+ {[%clk 0:00:11]}  Kxg7 {[%clk 0:00:05]} 38. Qd4+ {[%clk 0:00:12]}  Kh7 {[%clk 0:00:05]} 39. Qf6 {[%clk 0:00:12]}  Qe6 {[%clk 0:00:05]} 40. Qg5 {[%clk 0:00:11]}  Qa6+ {[%clk 0:00:04]} 41. Qa5 {[%clk 0:00:10]}  Qxa5+ {[%clk 0:00:05]} 42. Kxa5 {[%clk 0:00:10]}  Rc1 {[%clk 0:00:05]} 43. a4 {[%clk 0:00:10]}  Rxc2 {[%clk 0:00:06]} 44. b5 {[%clk 0:00:11]}  Rb2 {[%clk 0:00:06]} 45. Ka6 {[%clk 0:00:10]}  c3 {[%clk 0:00:07]} 46. a5 {[%clk 0:00:10]}  c2 {[%clk 0:00:07]} 47. b6 {[%clk 0:00:11]}  axb6 {[%clk 0:00:07]} 48. axb6 {[%clk 0:00:11]}  c1=Q {[%clk 0:00:07]} 49. Ka7 {[%clk 0:00:10]}  Qc6 {[%clk 0:00:07]} 50. b7 {[%clk 0:00:10]}  Qxb7# {[%clk 0:00:07]} 0-1


[Site "https://www.chess.com"]

[Event "Titled Tuesday Blitz April 26 Early 2022"]
[White "Yang, Kaiqi"]
[Black "volunteers1998"]
[WhiteFideId "8604398"]
[WhiteElo "2373"]
[BlackElo "2293"]
[Result "1-0"]
[Round "02"]
[TimeControl "180+1"]
[Date "2022.04.26"]
[WhiteClock "0:00:35"]
[BlackClock "0:00:06"]

1. e4 {[%clk 0:03:00]}  c5 {[%clk 0:02:57]} 2. Nf3 {[%clk 0:03:00]}  Nc6 {[%clk 0:02:56]} 3. Bb5 {[%clk 0:03:00]}  d6 {[%clk 0:02:53]} 4. O-O {[%clk 0:02:56]}  Bd7 {[%clk 0:02:53]} 5. Re1 {[%clk 0:02:56]}  e6 {[%clk 0:02:45]} 6. c3 {[%clk 0:02:54]}  Nf6 {[%clk 0:02:43]} 7. d4 {[%clk 0:02:54]}  cxd4 {[%clk 0:02:42]} 8. cxd4 {[%clk 0:02:55]}  a6 {[%clk 0:02:36]} 9. Bf1 {[%clk 0:02:54]}  Be7 {[%clk 0:02:33]} 10. Nc3 {[%clk 0:02:53]}  O-O {[%clk 0:02:29]} 11. h3 {[%clk 0:02:53]}  b5 {[%clk 0:02:21]} 12. a3 {[%clk 0:02:52]}  Rc8 {[%clk 0:01:58]} 13. Bf4 {[%clk 0:02:45]}  Qb6 {[%clk 0:01:45]} 14. d5 {[%clk 0:02:37]}  Na5 {[%clk 0:01:32]} 15. dxe6 {[%clk 0:02:13]}  fxe6 {[%clk 0:01:28]} 16. e5 {[%clk 0:02:12]}  Ne8 {[%clk 0:01:20]} 17. Be3 {[%clk 0:02:06]}  Qb7 {[%clk 0:01:15]} 18. exd6 {[%clk 0:01:44]}  Nxd6 {[%clk 0:01:12]} 19. Ne5 {[%clk 0:01:43]}  Nac4 {[%clk 0:01:04]} 20. Bxc4 {[%clk 0:01:35]}  bxc4 {[%clk 0:01:04]} 21. Bg5 {[%clk 0:01:20]}  Be8 {[%clk 0:00:58]} 22. Bxe7 {[%clk 0:01:15]}  Qxe7 {[%clk 0:00:58]} 23. Qe2 {[%clk 0:01:06]}  Nf5 {[%clk 0:00:40]} 24. Rad1 {[%clk 0:01:05]}  Bb5 {[%clk 0:00:20]} 25. a4 {[%clk 0:01:00]}  Bc6 {[%clk 0:00:17]} 26. Nxc6 {[%clk 0:00:41]}  Rxc6 {[%clk 0:00:16]} 27. Qe5 {[%clk 0:00:40]}  Rd8 {[%clk 0:00:08]} 28. Qxf5 {[%clk 0:00:35]}  Rxd1 {[%clk 0:00:06]} 29. Nxd1 {[%clk 0:00:35]} 1-0


[Site "https://www.chess.com"]

[Event "Titled Tuesday Blitz April 26 Early 2022"]
[White "Abdrlauf, Elham"]
[Black "Reprintsev, Alexander"]
[WhiteFideId "1533533"]
[BlackFideId "14100541"]
[WhiteElo "2334"]
[BlackElo "2108"]
[Result "1-0"]
[Round "03"]
[TimeControl "180+1"]
[Date "2022.04.26"]
[WhiteClock "0:01:00"]
[BlackClock "0:01:30"]

1. e4 {[%clk 0:02:58]}  d5 {[%clk 0:02:59]} 2. exd5 {[%clk 0:02:59]}  Qxd5 {[%clk 0:02:59]} 3. Nc3 {[%clk 0:02:59]}  Qa5 {[%clk 0:02:59]} 4. d4 {[%clk 0:03:00]}  Nf6 {[%clk 0:03:00]} 5. Nf3 {[%clk 0:03:00]}  Nc6 {[%clk 0:03:00]} 6. Bb5 {[%clk 0:02:56]}  Ne4 {[%clk 0:03:00]} 7. Bxc6+ {[%clk 0:02:56]}  bxc6 {[%clk 0:03:00]} 8. O-O {[%clk 0:02:51]}  Nxc3 {[%clk 0:03:00]} 9. bxc3 {[%clk 0:02:44]}  Bf5 {[%clk 0:03:00]} 10. Bd2 {[%clk 0:02:39]}  Qa4 {[%clk 0:02:54]} 11. Re1 {[%clk 0:02:37]}  Qxc2 {[%clk 0:02:51]} 12. Qe2 {[%clk 0:02:38]}  e6 {[%clk 0:02:42]} 13. Qc4 {[%clk 0:02:37]}  Bd6 {[%clk 0:02:39]} 14. Qxc6+ {[%clk 0:02:26]}  Ke7 {[%clk 0:02:39]} 15. c4 {[%clk 0:02:22]}  Rhc8 {[%clk 0:02:10]} 16. c5 {[%clk 0:02:16]}  Kf8 {[%clk 0:02:10]} 17. Rac1 {[%clk 0:02:14]}  Qxa2 {[%clk 0:02:10]} 18. cxd6 {[%clk 0:02:12]}  cxd6 {[%clk 0:02:10]} 19. Qxd6+ {[%clk 0:02:06]}  Kg8 {[%clk 0:02:10]} 20. h3 {[%clk 0:02:04]}  h6 {[%clk 0:02:09]} 21. Qg3 {[%clk 0:02:02]}  Kh8 {[%clk 0:02:08]} 22. Bf4 {[%clk 0:02:00]}  a5 {[%clk 0:02:07]} 23. Ne5 {[%clk 0:01:57]}  f6 {[%clk 0:02:03]} 24. Nf7+ {[%clk 0:01:46]}  Kh7 {[%clk 0:02:01]} 25. Nd6 {[%clk 0:01:46]}  Rxc1 {[%clk 0:02:00]} 26. Rxc1 {[%clk 0:01:47]}  Bg6 {[%clk 0:02:00]} 27. Rc7 {[%clk 0:01:25]}  Qd5 {[%clk 0:01:47]} 28. Qh4 {[%clk 0:01:03]}  Qxd4 {[%clk 0:01:30]} 29. Qxh6+ {[%clk 0:01:00]} 1-0


[Site "https://www.chess.com"]

[Event "Titled Tuesday Blitz April 26 Early 2022"]
[White "Aggelis, Nikolaos"]
[Black "Samaganova, Aleksandra"]
[WhiteFideId "4213220"]
[BlackFideId "13800221"]
[WhiteElo "2154"]
[BlackElo "1859"]
[Result "1-0"]
[Round "03"]
[TimeControl "180+1"]
[Date "2022.04.26"]
[WhiteClock "0:00:24"]
[BlackClock "0:00:01"]

1. d4 {[%clk 0:03:00]}  Nf6 {[%clk 0:02:56]} 2. g3 {[%clk 0:02:54]}  e6 {[%clk 0:02:53]} 3. Bg2 {[%clk 0:02:53]}  c5 {[%clk 0:02:47]} 4. Nf3 {[%clk 0:02:52]}  cxd4 {[%clk 0:02:47]} 5. O-O {[%clk 0:02:48]}  d5 {[%clk 0:02:43]} 6. Nxd4 {[%clk 0:02:43]}  Be7 {[%clk 0:02:35]} 7. c4 {[%clk 0:02:41]}  O-O {[%clk 0:02:26]} 8. cxd5 {[%clk 0:02:35]}  exd5 {[%clk 0:02:25]} 9. Nc3 {[%clk 0:02:35]}  Nc6 {[%clk 0:02:14]} 10. a3 {[%clk 0:02:25]}  h6 {[%clk 0:02:12]} 11. b4 {[%clk 0:02:24]}  Re8 {[%clk 0:01:53]} 12. Bb2 {[%clk 0:02:19]}  Bg4 {[%clk 0:01:14]} 13. h3 {[%clk 0:02:15]}  Bh5 {[%clk 0:01:13]} 14. Re1 {[%clk 0:02:12]}  Bg6 {[%clk 0:01:12]} 15. Rc1 {[%clk 0:02:09]}  Rc8 {[%clk 0:01:11]} 16. Na4 {[%clk 0:02:00]}  Nxd4 {[%clk 0:00:54]} 17. Qxd4 {[%clk 0:01:55]}  Rxc1 {[%clk 0:00:41]} 18. Rxc1 {[%clk 0:01:56]}  b6 {[%clk 0:00:42]} 19. e3 {[%clk 0:01:48]}  Qd7 {[%clk 0:00:36]} 20. Nc3 {[%clk 0:01:47]}  Rd8 {[%clk 0:00:35]} 21. Ne2 {[%clk 0:01:45]}  Ne8 {[%clk 0:00:32]} 22. Qd2 {[%clk 0:01:42]}  Be4 {[%clk 0:00:26]} 23. Rd1 {[%clk 0:01:36]}  Bxg2 {[%clk 0:00:25]} 24. Kxg2 {[%clk 0:01:37]}  Bf6 {[%clk 0:00:23]} 25. Nf4 {[%clk 0:01:34]}  Bxb2 {[%clk 0:00:21]} 26. Qxb2 {[%clk 0:01:35]}  Nf6 {[%clk 0:00:21]} 27. Qe5 {[%clk 0:01:20]}  Re8 {[%clk 0:00:16]} 28. Qd4 {[%clk 0:01:17]}  Rd8 {[%clk 0:00:16]} 29. Rc1 {[%clk 0:01:15]}  Ne4 {[%clk 0:00:09]} 30. Qe5 {[%clk 0:01:03]}  Re8 {[%clk 0:00:07]} 31. Qc7 {[%clk 0:01:00]}  Re7 {[%clk 0:00:05]} 32. Qxd7 {[%clk 0:00:55]}  Rxd7 {[%clk 0:00:05]} 33. Rc8+ {[%clk 0:00:54]}  Kh7 {[%clk 0:00:05]} 34. Ne2 {[%clk 0:00:55]}  Nd6 {[%clk 0:00:03]} 35. Ra8 {[%clk 0:00:54]}  Nb5 {[%clk 0:00:03]} 36. a4 {[%clk 0:00:53]}  Na3 {[%clk 0:00:02]} 37. Nd4 {[%clk 0:00:52]}  Nc4 {[%clk 0:00:03]} 38. Kf3 {[%clk 0:00:48]}  Nb2 {[%clk 0:00:03]} 39. a5 {[%clk 0:00:48]}  bxa5 {[%clk 0:00:03]} 40. bxa5 {[%clk 0:00:48]}  Nc4 {[%clk 0:00:03]} 41. a6 {[%clk 0:00:44]}  Nd2+ {[%clk 0:00:02]} 42. Ke2 {[%clk 0:00:43]}  Ne4 {[%clk 0:00:03]} 43. Nb5 {[%clk 0:00:41]}  Nc5 {[%clk 0:00:02]} 44. Rxa7 {[%clk 0:00:35]}  Rxa7 {[%clk 0:00:02]} 45. Nxa7 {[%clk 0:00:35]}  Nxa6 {[%clk 0:00:03]} 46. Kd3 {[%clk 0:00:33]}  Kg6 {[%clk 0:00:03]} 47. Kd4 {[%clk 0:00:33]}  Nc7 {[%clk 0:00:03]} 48. Kc5 {[%clk 0:00:32]}  Kf6 {[%clk 0:00:02]} 49. Kd6 {[%clk 0:00:32]}  Ne6 {[%clk 0:00:02]} 50. Kxd5 {[%clk 0:00:32]}  Ng5 {[%clk 0:00:02]} 51. h4 {[%clk 0:00:31]}  Nh3 {[%clk 0:00:03]} 52. f4 {[%clk 0:00:31]}  Nf2 {[%clk 0:00:02]} 53. Nc6 {[%clk 0:00:31]}  h5 {[%clk 0:00:02]} 54. Nd4 {[%clk 0:00:28]}  Nh1 {[%clk 0:00:02]} 55. Ne2 {[%clk 0:00:28]}  Kf5 {[%clk 0:00:01]} 56. Kd6 {[%clk 0:00:24]} 1-0


[Site "https://www.chess.com"]

[Event "Titled Tuesday Blitz April 26 Early 2022"]
[White "Al-Tarboush, Ward"]
[Black "Daneshvar, Bardiya"]
[WhiteFideId "7601450"]
[BlackFideId "12576468"]
[WhiteElo "2276"]
[BlackElo "2330"]
[Result "0-1"]
[Round "03"]
[TimeControl "180+1"]
[Date "2022.04.26"]
[WhiteClock "0:00:18"]
[BlackClock "0:01:18"]

1. e4 {[%clk 0:03:00]}  Nf6 {[%clk 0:02:59]} 2. e5 {[%clk 0:02:59]}  Nd5 {[%clk 0:02:59]} 3. d4 {[%clk 0:02:59]}  d6 {[%clk 0:02:59]} 4. Nf3 {[%clk 0:03:00]}  g6 {[%clk 0:02:58]} 5. Be2 {[%clk 0:03:00]}  Bg7 {[%clk 0:02:58]} 6. O-O {[%clk 0:03:00]}  O-O {[%clk 0:02:59]} 7. c4 {[%clk 0:03:01]}  Nb6 {[%clk 0:02:58]} 8. Nc3 {[%clk 0:03:01]}  Nc6 {[%clk 0:02:59]} 9. exd6 {[%clk 0:03:01]}  cxd6 {[%clk 0:02:59]} 10. Be3 {[%clk 0:03:01]}  Bg4 {[%clk 0:02:58]} 11. b3 {[%clk 0:03:01]}  d5 {[%clk 0:02:58]} 12. c5 {[%clk 0:02:56]}  Nc8 {[%clk 0:02:58]} 13. h3 {[%clk 0:02:55]}  Bxf3 {[%clk 0:02:58]} 14. Bxf3 {[%clk 0:02:56]}  e6 {[%clk 0:02:59]} 15. b4 {[%clk 0:02:54]}  N8e7 {[%clk 0:02:57]} 16. b5 {[%clk 0:02:54]}  Na5 {[%clk 0:02:56]} 17. Bf4 {[%clk 0:02:51]}  Nf5 {[%clk 0:02:56]} 18. Ne2 {[%clk 0:02:50]}  Nc4 {[%clk 0:02:52]} 19. Qd3 {[%clk 0:02:41]}  a6 {[%clk 0:02:46]} 20. b6 {[%clk 0:02:41]}  Rc8 {[%clk 0:02:45]} 21. Rac1 {[%clk 0:02:37]}  Qf6 {[%clk 0:02:44]} 22. Bc7 {[%clk 0:02:27]}  Na5 {[%clk 0:02:33]} 23. Be5 {[%clk 0:02:12]}  Qh4 {[%clk 0:02:33]} 24. Bxg7 {[%clk 0:02:11]}  Kxg7 {[%clk 0:02:33]} 25. Bg4 {[%clk 0:02:11]}  Nh6 {[%clk 0:02:33]} 26. Qg3 {[%clk 0:02:10]}  Qxg3 {[%clk 0:02:31]} 27. Nxg3 {[%clk 0:02:09]}  Nc6 {[%clk 0:02:31]} 28. Ne2 {[%clk 0:02:09]}  f5 {[%clk 0:02:29]} 29. Bf3 {[%clk 0:02:09]}  Nf7 {[%clk 0:02:29]} 30. g3 {[%clk 0:02:10]}  Kf6 {[%clk 0:02:27]} 31. Bg2 {[%clk 0:02:09]}  Ng5 {[%clk 0:02:26]} 32. f4 {[%clk 0:02:09]}  Ne4 {[%clk 0:02:26]} 33. Bxe4 {[%clk 0:02:08]}  dxe4 {[%clk 0:02:26]} 34. Kf2 {[%clk 0:02:09]}  Rfd8 {[%clk 0:02:26]} 35. Ke3 {[%clk 0:02:09]}  Rd7 {[%clk 0:02:23]} 36. Rfd1 {[%clk 0:02:08]}  Rcd8 {[%clk 0:02:23]} 37. a3 {[%clk 0:02:07]}  Ke7 {[%clk 0:02:21]} 38. g4 {[%clk 0:01:56]}  Kf7 {[%clk 0:02:18]} 39. Rd2 {[%clk 0:01:48]}  Ne7 {[%clk 0:02:15]} 40. Nc3 {[%clk 0:01:47]}  Nc6 {[%clk 0:02:14]} 41. Rcd1 {[%clk 0:01:48]}  Ne7 {[%clk 0:02:12]} 42. h4 {[%clk 0:01:26]}  h5 {[%clk 0:02:11]} 43. gxh5 {[%clk 0:01:26]}  gxh5 {[%clk 0:02:12]} 44. Rg2 {[%clk 0:01:16]}  Ng6 {[%clk 0:02:01]} 45. Rg5 {[%clk 0:01:15]}  Nxh4 {[%clk 0:01:58]} 46. Rxh5 {[%clk 0:01:15]}  Nf3 {[%clk 0:01:58]} 47. Rh7+ {[%clk 0:01:09]}  Ke8 {[%clk 0:01:52]} 48. Rxd7 {[%clk 0:01:03]}  Kxd7 {[%clk 0:01:53]} 49. d5 {[%clk 0:01:03]}  Rc8 {[%clk 0:01:50]} 50. dxe6+ {[%clk 0:00:58]}  Kxe6 {[%clk 0:01:50]} 51. Rd6+ {[%clk 0:00:58]}  Ke7 {[%clk 0:01:50]} 52. Nd5+ {[%clk 0:00:58]}  Kf7 {[%clk 0:01:50]} 53. Rd7+ {[%clk 0:00:59]}  Ke6 {[%clk 0:01:49]} 54. Rd6+ {[%clk 0:00:59]}  Kf7 {[%clk 0:01:49]} 55. Nc7 {[%clk 0:00:57]}  Ke7 {[%clk 0:01:48]} 56. Rh6 {[%clk 0:00:56]}  Rb8 {[%clk 0:01:35]} 57. Rh7+ {[%clk 0:00:55]}  Kf6 {[%clk 0:01:35]} 58. Nd5+ {[%clk 0:00:50]}  Ke6 {[%clk 0:01:35]} 59. Nc7+ {[%clk 0:00:51]}  Kf6 {[%clk 0:01:36]} 60. a4 {[%clk 0:00:51]}  Ne1 {[%clk 0:01:29]} 61. a5 {[%clk 0:00:43]}  Nd3 {[%clk 0:01:28]} 62. Nd5+ {[%clk 0:00:42]}  Ke6 {[%clk 0:01:28]} 63. Nc7+ {[%clk 0:00:42]}  Kf6 {[%clk 0:01:29]} 64. c6 {[%clk 0:00:41]}  bxc6 {[%clk 0:01:29]} 65. Rh6+ {[%clk 0:00:41]}  Ke7 {[%clk 0:01:29]} 66. Rxc6 {[%clk 0:00:40]}  Kd7 {[%clk 0:01:29]} 67. Rf6 {[%clk 0:00:40]}  Nb4 {[%clk 0:01:28]} 68. Rxf5 {[%clk 0:00:38]}  Rh8 {[%clk 0:01:25]} 69. Kxe4 {[%clk 0:00:37]}  Kc6 {[%clk 0:01:25]} 70. Rf6+ {[%clk 0:00:36]}  Kb7 {[%clk 0:01:25]} 71. Re6 {[%clk 0:00:36]}  Nc6 {[%clk 0:01:23]} 72. Nd5 {[%clk 0:00:31]}  Nxa5 {[%clk 0:01:21]} 73. Re7+ {[%clk 0:00:32]}  Kc6 {[%clk 0:01:22]} 74. Rc7+ {[%clk 0:00:31]}  Kd6 {[%clk 0:01:22]} 75. f5 {[%clk 0:00:22]}  Re8+ {[%clk 0:01:22]} 76. Kd4 {[%clk 0:00:23]}  Nc6+ {[%clk 0:01:22]} 77. Kc4 {[%clk 0:00:20]}  Re4+ {[%clk 0:01:21]} 78. Kd3 {[%clk 0:00:20]}  Rd4+ {[%clk 0:01:21]} 79. Ke3 {[%clk 0:00:19]}  Rxd5 {[%clk 0:01:22]} 80. Ra7 {[%clk 0:00:18]}  Nxa7 {[%clk 0:01:20]} 81. bxa7 {[%clk 0:00:17]}  Re5+ {[%clk 0:01:20]} 82. Kd4 {[%clk 0:00:18]}  Re8 {[%clk 0:01:21]} 83. f6 {[%clk 0:00:18]}  Ra8 {[%clk 0:01:18]} 84. f7 {[%clk 0:00:18]}  Ke7 {[%clk 0:01:18]} 85. Kc5 {[%clk 0:00:18]}  Rxa7 {[%clk 0:01:18]} 86. Kb6 {[%clk 0:00:18]}  Ra8 {[%clk 0:01:18]} 0-1


[Site "https://www.chess.com"]